fUSD/lending_fUSD_20250101
["ID","MTS","AMOUNT","RATE_DAILY","PERIOD"]
[347344563,1735714250171,-500.0,0.00011039,2]
[347344564,1735714250180,-1938.44,0.00011039,2]
[347344565,1735714250189,-500.0,0.00011039,2]
[347344566,1735714250198,-224.46049515,0.00011039,2]
[347344567,1735714250207,-500.0,0.00011039,2]
[347344568,1735714250216,-594.93,0.00011039,2]
[347344569,1735714250225,-793.29,0.00011039,2]
[347344570,1735714250234,-645.89,0.00011039,2]
[347344571,1735714250243,-512.03,0.00011039,2]
[347344572,1735714250252,-1561.16,0.00011039,2]
[347344573,1735714250261,-856.25,0.00011039,2]
[347344574,1735714250270,-1422.35,0.00011039,2]
[347344575,1735714250280,-2584.06,0.00011039,2]
[347344576,1735714250288,-766.36,0.00011039,2]
[347344577,1735714250298,-2021.63,0.00011039,2]
[347344578,1735714250308,-500.0,0.00011039,2]
[347344579,1735714250317,-1232.27,0.00011039,2]
[347344580,1735714250327,-500.0,0.00011039,2]
[347344581,1735714250336,-2945.73,0.00011039,2]
[347344582,1735714250345,-518.46,0.00011039,2]
[347344583,1735714250355,-500.0,0.00011039,2]
[347344584,1735714250364,-1001.5,0.00011039,2]
[347344585,1735714250374,-4924.3,0.00011039,2]
[347344586,1735714250383,-3200.92,0.00011039,2]
[347344587,1735714250392,-3164.18,0.00011039,2]
[347344588,1735714250402,-21452.94,0.00011039,2]
[347344589,1735714250411,-2903.53,0.00011039,2]
[347344590,1735714250420,-3536.95,0.00011039,2]
[347344591,1735714250430,-6554.32,0.00011039,2]
[347344592,1735714250439,-5629.72,0.00011039,2]
[347344593,1735714250449,-6235.99,0.00011039,2]
[347344594,1735714250458,-4514.53,0.00011039,2]
[347344595,1735714250468,-4822.41,0.00011039,2]
[347344596,1735714250477,-4324.25,0.00011039,2]
[347344597,1735714250486,-500.0,0.00011039,2]
[347344598,1735714250495,-9741.8,0.00011039,2]
[347344599,1735714250504,-9166.95,0.00011039,2]
[347344600,1735714250513,-3152.51660524,0.0001104,2]
[347344601,1735714250523,-1173527.44258164,0.0001104,2]
[347344602,1735714250534,-4924.3,0.0001104,2]
[347344603,1735714250543,-4924.3,0.0001104,2]
[347344604,1735714250552,-4736.8214416,0.0001104,2]
[347344605,1735714250561,-1006.105262,0.0001104,2]
[347344606,1735714250571,-6041.5273397,0.0001104,2]
[347344607,1735714250580,-3823.1343825,0.0001104,2]
[347344608,1735714250589,-565.7870447,0.0001104,2]
[347344609,1735714250598,-4924.3,0.00011041,2]
[347344610,1735714250609,-4924.3,0.00011042,2]
[347344611,1735714250619,-4924.3,0.00011042,2]
[347344612,1735714250628,-257.35015,0.00011043,2]
[347344613,1735714250637,-1045.86359087,0.00011047,3]
[347344614,1735714250646,-1271.786,0.0001108,2]
[347344615,1735714250655,-2013.0,0.0001108,2]
[347344616,1735714250664,-256.794,0.0001108,2]
[347344617,1735714250674,-566.0,0.0001108,2]
[347344618,1735714250683,-639.144,0.0001108,2]
[347344619,1735714250692,-1859.0,0.0001108,2]
[347344620,1735714250701,-919.0,0.0001108,2]
[347344621,1735714250711,-1261.586,0.0001108,2]
[347344622,1735714250720,-3774.0,0.0001108,2]
[347344623,1735714250729,-819.0,0.0001108,2]
[347344624,1735714250739,-3720.0,0.0001108,2]
[347344625,1735714250748,-536.0,0.0001108,2]
[347344626,1735714250757,-150.0,0.0001108,2]
[347344627,1735714250766,-150.0,0.0001108,2]
[347344628,1735714250777,-9609.0,0.0001108,2]
[347344629,1735714250786,-3892.0,0.0001108,2]
[347344630,1735714250795,-1172.0,0.0001108,2]
[347344631,1735714250804,-159.551,0.0001108,2]
[347344632,1735714250814,-1102.0,0.000111,2]
[347344633,1735714250823,-1102.0,0.000111,2]
[347344634,1735714250832,-1102.0,0.000111,2]
[347344635,1735714250841,-1102.0,0.000111,2]
[347344636,1735714250851,-1102.0,0.000111,2]
[347344637,1735714250861,-1102.0,0.000111,2]
[347344638,1735714250872,-1102.0,0.000111,2]
[347344639,1735714250883,-1102.0,0.000111,2]
[347344640,1735714250892,-1102.0,0.000111,2]
[347344641,1735714250901,-1102.0,0.000111,2]
[347344642,1735714250910,-234760.84246828,0.00011111,2]
[347344643,1735714250919,-4924.3,0.00011115,2]
[347344644,1735714250928,-502.0,0.00011123,2]
[347344645,1735714250937,-502.0,0.00011123,2]
[347344646,1735714250946,-150.0,0.00011132,2]
[347344647,1735714250955,-150.0,0.00011132,2]
[347344648,1735714250964,-217.85,0.00011132,2]
[347344649,1735714250973,-250.0,0.00011132,2]
[347344650,1735714250984,-52637.94345154,0.00011147,2]
[347344651,1735714250994,-200.0,0.00011159,2]
[347344652,1735714251003,-666.0,0.00011172,2]
[347344653,1735714251012,-314.28282572,0.00011209,2]
[347344654,1735714251021,-666.94924696,0.00011209,2]
[347344655,1735714251030,-221.1089856,0.00011211,2]
[347344656,1735714251039,-1057.0,0.00011225,2]
[347344657,1735714251048,-150.0,0.00011244,2]
[347344658,1735714251057,-150.0,0.00011244,2]
[347344659,1735714251066,-154.31,0.00011287,2]
[347344660,1735714251075,-20096.0,0.00011288,2]
[347344661,1735714251084,-1000.0,0.00011299,2]
[347344662,1735714251093,-2614.38,0.000113,2]
[347344663,1735714251102,-1000.0,0.000113,2]
[347344664,1735714251111,-666.0,0.00011302,2]
[347344665,1735714251120,-111131.25817337,0.00011303,2]
[347344666,1735714251129,-2963.7,0.00011308,2]
[347344667,1735714251138,-2710.67,0.00011308,2]
[347344668,1735714251147,-4473.96,0.00011308,2]
[347344669,1735714251156,-1187.82,0.00011308,2]
[347344670,1735714251165,-8930.49,0.00011308,2]
[347344671,1735714251174,-605.8,0.00011308,2]
[347344672,1735714251183,-10711.52,0.00011308,2]
[347344673,1735714251192,-5068.3,0.00011308,2]
[347344674,1735714251201,-8990.03,0.00011308,2]
[347344675,1735714251210,-2753.76,0.00011308,2]
[347344676,1735714251219,-1282.89,0.00011308,2]
[347344677,1735714251228,-1318.65,0.00011308,2]
[347344678,1735714251237,-2011.29,0.00011308,2]
[347344679,1735714251247,-9101.2,0.00011308,2]
[347344680,1735714251255,-3471.47,0.00011308,2]
[347344681,1735714251264,-2554.89,0.00011308,2]
[347344682,1735714251274,-500.0,0.00011308,2]
[347344683,1735714251283,-3793.43,0.00011308,2]
[347344684,1735714251292,-875.5,0.00011309,2]
[347344685,1735714251302,-2236.34,0.00011309,2]
[347344686,1735714251311,-937.1,0.00011309,2]
[347344687,1735714251320,-500.0,0.00011309,2]
[347344688,1735714251330,-978.48,0.00011309,2]
[347344689,1735714251339,-1578.69,0.00011309,2]
[347344690,1735714251348,-500.0,0.00011309,2]
[347344691,1735714251357,-4004.02,0.00011309,2]
[347344692,1735714251366,-2442.37,0.00011309,2]
[347344693,1735714251375,-500.0,0.00011309,2]
[347344694,1735714251384,-600.1184008,0.00011309,2]
[347344695,1735714251393,-2575.45,0.00011309,2]
[347344696,1735714251403,-582.56,0.00011309,2]
[347344697,1735714251412,-2913.66,0.00011309,2]
[347344698,1735714251421,-616.54,0.00011309,2]
[347344699,1735714251430,-1943.15,0.00011309,2]
[347344700,1735714251439,-500.0,0.00011309,2]
[347344701,1735714251448,-940.91,0.00011309,2]
[347344702,1735714251457,-672.83,0.00011309,2]
[347344703,1735714251466,-500.0,0.00011309,2]
[347344704,1735714251475,-1235.98,0.00011309,2]
[347344705,1735714251484,-500.0,0.00011309,2]
[347344706,1735714251493,-1736.15,0.00011309,2]
[347344707,1735714251502,-500.0,0.00011309,2]
[347344708,1735714251511,-2881.21,0.00011309,2]
[347344709,1735714251520,-2526.37,0.00011309,2]
[347344710,1735714251532,-1289.03,0.00011309,2]
[347344711,1735714251542,-1326.82,0.00011309,2]
[347344712,1735714251551,-957.16,0.00011309,2]
[347344713,1735714251561,-3309.69,0.00011309,2]
[347344714,1735714251575,-538.05,0.00011309,2]
[347344715,1735714251584,-533.57,0.00011309,2]
[347344716,1735714251593,-500.0,0.00011309,2]
[347344717,1735714251603,-3003.05,0.00011309,2]
[347344718,1735714251613,-500.0,0.00011309,2]
[347344719,1735714251623,-803.57,0.00011309,2]
[347344720,1735714251632,-732.31,0.00011309,2]
[347344721,1735714251641,-603.79,0.00011309,2]
[347344722,1735714251650,-500.0,0.00011309,2]
[347344723,1735714251660,-500.0,0.00011309,2]
[347344724,1735714251669,-500.0,0.00011309,2]
[347344725,1735714251768,-657.6,0.00011309,2]
[347344726,1735714251778,-959.95,0.00011309,2]
[347344727,1735714251787,-550.83,0.00011309,2]
[347344728,1735714251796,-221.88865827,0.00011309,2]
[347344729,1735714251804,-500.0,0.00011309,2]
[347344730,1735714251813,-500.0,0.00011309,2]
[347344731,1735714251822,-1805.81,0.00011309,2]
[347344732,1735714251831,-500.0,0.00011309,2]
[347344733,1735714251840,-500.0,0.00011309,2]
[347344734,1735714251848,-3000.76,0.00011309,2]
[347344735,1735714251857,-809.56,0.00011309,2]
[347344736,1735714251866,-2900.119945,0.00011309,2]
[347344737,1735714251875,-500.0,0.00011309,2]
[347344738,1735714251884,-1148.58,0.00011309,2]
[347344739,1735714251893,-500.0,0.00011309,2]
[347344740,1735714251901,-1830.47,0.00011309,2]
[347344741,1735714251910,-500.0,0.00011309,2]
[347344742,1735714251920,-1632.4,0.00011309,2]
[347344743,1735714251929,-500.0,0.00011309,2]
[347344744,1735714251938,-3999.27,0.00011309,2]
[347344745,1735714251947,-1580.97,0.00011309,2]
[347344746,1735714251956,-2080.358912,0.00011309,2]
[347344747,1735714251966,-1494.65,0.00011309,2]
[347344748,1735714251975,-440.4749602,0.00011309,2]
[347344749,1735714251984,-765.0,0.00011309,2]
[347344750,1735714251993,-500.0,0.00011309,2]
[347344751,1735714252002,-500.0,0.00011309,2]
[347344752,1735714252010,-1164.91,0.00011309,2]
[347344753,1735714252019,-2459.58,0.00011309,2]
[347344754,1735714252028,-637.06,0.00011309,2]
[347344755,1735714252039,-500.0,0.00011309,2]
[347344756,1735714252047,-840.89,0.00011309,2]
[347344757,1735714252056,-741.34,0.00011309,2]
[347344758,1735714252066,-500.0,0.00011309,2]
[347344759,1735714252076,-926.25,0.00011309,2]
[347344760,1735714252085,-1383.27,0.00011309,2]
[347344761,1735714252094,-500.0,0.00011309,2]
[347344762,1735714252102,-3897.82,0.00011309,2]
[347344763,1735714252111,-500.0,0.00011309,2]
[347344764,1735714252120,-1433.31,0.00011309,2]
[347344765,1735714252129,-169.30500638,0.00011309,2]
[347344766,1735714252138,-877.6,0.00011309,2]
[347344767,1735714252146,-578.68,0.00011309,2]
[347344768,1735714252155,-2215.96,0.00011309,2]
[347344769,1735714252164,-500.0,0.00011309,2]
[347344770,1735714252173,-1662.65,0.00011309,2]
[347344771,1735714252182,-500.0,0.00011309,2]
[347344772,1735714252191,-500.0,0.00011309,2]
[347344773,1735714252199,-1239.38,0.00011309,2]
[347344774,1735714252208,-500.0,0.00011309,2]
[347344775,1735714252218,-500.0,0.00011309,2]
[347344776,1735714252227,-2108.09,0.00011309,2]
[347344777,1735714252236,-2779.09,0.00011309,2]
[347344778,1735714252245,-3934.16,0.00011309,2]
[347344779,1735714252254,-500.0,0.00011309,2]
[347344780,1735714252263,-500.0,0.00011309,2]
[347344781,1735714252275,-655.93,0.00011309,2]
[347344782,1735714252284,-1656.08,0.00011309,2]
[347344783,1735714252293,-500.0,0.00011309,2]
[347344784,1735714252302,-500.0,0.00011309,2]
[347344785,1735714252311,-2203.76,0.00011309,2]
[347344786,1735714252320,-1430.6,0.00011309,2]
[347344787,1735714252329,-500.0,0.00011309,2]
[347344788,1735714252338,-1308.54,0.00011309,2]
[347344789,1735714252347,-512.65,0.00011309,2]
[347344790,1735714252357,-558.6,0.00011309,2]
[347344791,1735714252366,-941.05,0.00011309,2]
[347344792,1735714252375,-2965.74,0.00011309,2]
[347344793,1735714252384,-6576.63,0.00011309,2]
[347344794,1735714252394,-500.0,0.00011309,2]
[347344795,1735714252403,-500.0,0.00011309,2]
[347344796,1735714252412,-500.0,0.00011309,2]
[347344797,1735714252421,-500.0,0.00011309,2]
[347344798,1735714252431,-587.84,0.00011309,2]
[347344799,1735714252439,-1456.07,0.00011309,2]
[347344800,1735714252449,-1466.44,0.00011309,2]
[347344801,1735714252458,-1208.12,0.00011309,2]
[347344802,1735714252467,-500.0,0.00011309,2]
[347344803,1735714252476,-784.64,0.00011309,2]
[347344804,1735714252485,-1165.76,0.00011309,2]
[347344805,1735714252494,-500.0,0.00011309,2]
[347344806,1735714252504,-500.0,0.00011309,2]
[347344807,1735714252512,-1887.01,0.00011309,2]
[347344808,1735714252521,-673.04,0.00011309,2]
[347344809,1735714252534,-3167.13,0.00011309,2]
[347344810,1735714252543,-500.0,0.00011309,2]
[347344811,1735714252552,-500.0,0.00011309,2]
[347344812,1735714252562,-827.95,0.00011309,2]
[347344813,1735714252571,-551.56,0.00011309,2]
[347344814,1735714252580,-1395.36,0.00011309,2]
[347344815,1735714252589,-500.0,0.00011309,2]
[347344816,1735714252598,-1676.58,0.00011309,2]
[347344817,1735714252608,-1184.54,0.00011309,2]
[347344818,1735714252616,-581.62,0.00011309,2]
[347344819,1735714252626,-500.0,0.00011309,2]
[347344820,1735714252635,-4034.06,0.00011309,2]
[347344821,1735714252644,-538.71,0.00011309,2]
[347344822,1735714252652,-986.77,0.00011309,2]
[347344823,1735714252661,-500.0,0.00011309,2]
[347344824,1735714252670,-1581.98,0.00011309,2]
[347344825,1735714252679,-500.0,0.00011309,2]
[347344826,1735714252688,-500.0,0.00011309,2]
[347344827,1735714252697,-3209.7,0.00011309,2]
[347344828,1735714252706,-500.0,0.00011309,2]
[347344829,1735714252715,-500.0,0.00011309,2]
[347344830,1735714252724,-324.45563826,0.00011309,2]
[347344831,1735714252734,-5629.86,0.00011309,2]
[347344832,1735714252743,-500.0,0.00011309,2]
[347344833,1735714252752,-500.0,0.00011309,2]
[347344834,1735714252760,-500.0,0.00011309,2]
[347344835,1735714252769,-767.39,0.00011309,2]
[347344836,1735714252778,-924.29,0.00011309,2]
[347344837,1735714252787,-2598.45,0.00011309,2]
[347344838,1735714252797,-830.36,0.00011309,2]
[347344839,1735714252806,-897.24,0.00011309,2]
[347344840,1735714252815,-1649.24,0.00011309,2]
[347344841,1735714252824,-814.67,0.00011309,2]
[347344842,1735714252833,-500.0,0.00011309,2]
[347344843,1735714252842,-2327.71,0.00011309,2]
[347344844,1735714252851,-500.0,0.00011309,2]
[347344845,1735714252860,-1154.69,0.00011309,2]
[347344846,1735714252869,-4494.96,0.00011309,2]
[347344847,1735714252878,-500.0,0.00011309,2]
[347344848,1735714252887,-500.0,0.00011309,2]
[347344849,1735714252896,-1418.72,0.00011309,2]
[347344850,1735714252906,-968.99,0.00011309,2]
[347344851,1735714252915,-500.0,0.00011309,2]
[347344852,1735714252923,-1809.93,0.00011309,2]
[347344853,1735714252932,-592.87,0.00011309,2]
[347344854,1735714252941,-535.95,0.00011309,2]
[347344855,1735714252950,-2911.04,0.00011309,2]
[347344856,1735714252959,-500.0,0.00011309,2]
[347344857,1735714252968,-500.0,0.00011309,2]
[347344858,1735714252977,-7946.25,0.00011309,2]
[347344859,1735714252986,-500.0,0.00011309,2]
[347344860,1735714252995,-530.87,0.00011309,2]
[347344861,1735714253003,-500.0,0.00011309,2]
[347344862,1735714253012,-2186.75,0.00011309,2]
[347344863,1735714253021,-500.0,0.00011309,2]
[347344864,1735714253030,-3694.67,0.00011309,2]
[347344865,1735714253039,-2055.23,0.00011309,2]
[347344866,1735714253048,-1894.09,0.00011309,2]
[347344867,1735714253058,-500.0,0.00011309,2]
[347344868,1735714253067,-500.0,0.00011309,2]
[347344869,1735714253076,-1518.18,0.00011309,2]
[347344870,1735714253086,-500.0,0.00011309,2]
[347344871,1735714253095,-500.0,0.00011309,2]
[347344872,1735714253104,-1054.55,0.00011309,2]
[347344873,1735714253113,-523.03,0.00011309,2]
[347344874,1735714253122,-6644.1,0.00011309,2]
[347344875,1735714253131,-7125.08,0.00011309,2]
[347344876,1735714253140,-500.0,0.00011309,2]
[347344877,1735714253149,-24436.63,0.00011309,2]
[347344878,1735714253158,-777.29,0.00011309,2]
[347344879,1735714253167,-3400.22,0.00011309,2]
[347344880,1735714253175,-500.0,0.00011309,2]
[347344881,1735714253184,-628.23,0.00011309,2]
[347344882,1735714253193,-2093.72,0.00011309,2]
[347344883,1735714253203,-6572.95,0.00011309,2]
[347344884,1735714253212,-500.0,0.00011309,2]
[347344885,1735714253221,-1044.66,0.00011309,2]
[347344886,1735714253230,-638.69875239,0.00011309,2]
[347344887,1735714253239,-500.0,0.00011309,2]
[347344888,1735714253248,-3035.37,0.00011309,2]
[347344889,1735714253258,-2431.44,0.00011309,2]
[347344890,1735714253267,-4358.21,0.00011309,2]
[347344891,1735714253276,-500.0,0.00011309,2]
[347344892,1735714253286,-500.0,0.00011309,2]
[347344893,1735714253295,-1034.09,0.00011309,2]
[347344894,1735714253304,-1694.95,0.00011309,2]
[347344895,1735714253313,-500.0,0.00011309,2]
[347344896,1735714253322,-500.0,0.00011309,2]
[347344897,1735714253331,-500.0,0.00011309,2]
[347344898,1735714253341,-4485.04,0.00011309,2]
[347344899,1735714253350,-647.02,0.00011309,2]
[347344900,1735714253359,-604.1,0.00011309,2]
[347344901,1735714253368,-527.59812943,0.00011309,2]
[347344902,1735714253377,-500.0,0.00011309,2]
[347344903,1735714253386,-582.78,0.00011309,2]
[347344904,1735714253396,-230.0556056,0.00011309,2]
[347344905,1735714253405,-1951.43,0.00011309,2]
[347344906,1735714253415,-3393.79,0.00011309,2]
[347344907,1735714253424,-3407.47,0.00011309,2]
[347344908,1735714253434,-500.0,0.00011309,2]
[347344909,1735714253444,-500.0,0.00011309,2]
[347344910,1735714253453,-1551.1,0.00011309,2]
[347344911,1735714253462,-500.0,0.00011309,2]
[347344912,1735714253472,-500.0,0.00011309,2]
[347344913,1735714253482,-2026.95,0.00011309,2]
[347344914,1735714253491,-2692.48,0.00011309,2]
[347344915,1735714253500,-509.06,0.00011309,2]
[347344916,1735714253509,-623.79,0.00011309,2]
[347344917,1735714253520,-500.0,0.00011309,2]
[347344918,1735714253531,-500.0,0.00011309,2]
[347344919,1735714253542,-500.0,0.00011309,2]
[347344920,1735714253551,-4083.84,0.00011309,2]
[347344921,1735714253561,-500.0,0.00011309,2]
[347344922,1735714253571,-1681.39,0.00011309,2]
[347344923,1735714253581,-500.0,0.00011309,2]
[347344924,1735714253590,-2676.95,0.00011309,2]
[347344925,1735714253599,-2615.03,0.00011309,2]
[347344926,1735714253608,-16787.38,0.00011309,2]
[347344927,1735714253618,-864.69,0.00011309,2]
[347344928,1735714253629,-500.0,0.00011309,2]
[347344929,1735714253638,-963.05,0.00011309,2]
[347344930,1735714253649,-1041.41,0.00011309,2]
[347344931,1735714253660,-9197.85,0.00011309,2]
[347344932,1735714253670,-500.0,0.00011309,2]
[347344933,1735714253679,-500.0,0.00011309,2]
[347344934,1735714253688,-5521.76,0.00011309,2]
[347344935,1735714253698,-500.0,0.00011309,2]
[347344936,1735714253707,-500.0,0.00011309,2]
[347344937,1735714253718,-1139.6,0.00011309,2]
[347344938,1735714253730,-549.8,0.00011309,2]
[347344939,1735714253739,-500.0,0.00011309,2]
[347344940,1735714253748,-3510.25,0.00011309,2]
[347344941,1735714253758,-1552.3,0.00011309,2]
[347344942,1735714253767,-14483.25,0.00011309,2]
[347344943,1735714253777,-1455.46,0.00011309,2]
[347344944,1735714253787,-500.0,0.00011309,2]
[347344945,1735714253796,-500.0,0.00011309,2]
[347344946,1735714253806,-16701.91,0.00011309,2]
[347344947,1735714253815,-1981.02,0.00011309,2]
[347344948,1735714253824,-500.0,0.00011309,2]
[347344949,1735714253834,-1094.94,0.00011309,2]
[347344950,1735714253843,-2514.48,0.00011309,2]
[347344951,1735714253853,-500.0,0.00011309,2]
[347344952,1735714253862,-2316.46,0.00011309,2]
[347344953,1735714253871,-922.05,0.00011309,2]
[347344954,1735714253882,-3064.06075239,0.00011309,2]
[347344955,1735714302038,1000.0,0.00010339,2]
[347344956,1735714309603,190.336,0.0001074,2]
[347344957,1735714322033,14647.6995,0.00010935,2]
[347344958,1735714326365,1321.7928,0.00010935,2]
[347344959,1735714330870,305.32,0.00010211,2]
[347344960,1735714358455,1000.0,0.00010935,2]
[347344961,1735714401195,1000.0,0.00010935,2]
[347344962,1735714436056,241.818,0.00010936,2]
[347344963,1735714446424,23900.0,0.00010185,2]
[347344964,1735714463549,1977.6597,0.00010936,2]
[347344965,1735714557846,6392.638,0.00010934,2]
[347344966,1735714607321,250.0,0.00010184,2]
[347344967,1735714625333,183.69,0.00010489,2]
[347344968,1735714683256,3776.0593,0.00010934,2]
[347344969,1735714940473,182.195,0.0001074,2]
[347344970,1735715097262,250.0,0.00010174,2]
[347344971,1735715111275,150.0,0.00010701,2]
[347344972,1735715111643,150.0,0.0001085,2]
[347344973,1735715111984,150.0,0.00010999,2]
[347344974,1735715116179,150.0,0.00010701,2]
[347344975,1735715116582,150.0,0.00010999,2]
[347344976,1735715124331,223.79174546,0.00010701,2]
[347344977,1735715184425,1000.0,0.00010171,2]
[347344979,1735715196198,366.46,8.254e-05,2]
[347344980,1735715196390,366.46,0.00010517,2]
[347344981,1735715220048,333.72,0.00010171,2]
[347344982,1735715232758,156.0,0.0001311,10]
[347344983,1735715315355,1454.15838338,0.0002,120]
[347344984,1735715425287,2252.29,0.0001009,2]
[347344994,1735715431730,-300.0,0.0001103,2]
[347344995,1735715431740,-10.05771303,0.00011031,2]
[347344996,1735715431751,-790.398,0.00011031,2]
[347344997,1735715431762,-288.38428697,0.00011031,2]
[347344998,1735715431771,-8207.11,0.00011031,2]
[347344999,1735715431780,-9860.56,0.00011031,2]
[347345000,1735715431790,-52617.0,0.00011031,2]
[347345001,1735715431808,-4666.77,0.00011031,2]
[347345002,1735715431818,-396.9499181,0.00011031,2]
[347345003,1735715431827,-8261.7,0.00011031,2]
[347345004,1735715431836,-8363.6,0.00011031,2]
[347345031,1735715432132,-1208.76,0.00011031,2]
[347345033,1735715432142,-1311.39,0.00011031,2]
[347345035,1735715432152,-1175.98,0.00011031,2]
[347345037,1735715432161,-500.0,0.00011031,2]
[347345039,1735715432171,-3728.851,0.00011032,2]
[347345041,1735715432180,-269.997,0.00011032,2]
[347345043,1735715432190,-4951.71363732,0.00011032,2]
[347345045,1735715432202,-1103.55713475,0.00011032,2]
[347345048,1735715432213,-818.264965,0.00011032,2]
[347345050,1735715432226,-281.47687364,0.00011032,2]
[347345055,1735715432262,-1104.16674382,0.00011032,2]
[347345062,1735715437507,-509.16789362,0.00011031,2]
[347345063,1735715437520,-2673.01210638,0.00011031,2]
[347345064,1735715437530,-94.3690259,0.00011031,2]
[347345065,1735715437541,-275.51859053,0.00011031,2]
[347345066,1735715437574,-349.36238357,0.00011031,2]
[347345067,1735715437584,-523.21,0.00011031,2]
[347345068,1735715437593,-6803.73761643,0.00011032,2]
[347345069,1735715437605,-2067.21978566,0.00011032,2]
[347345070,1735715437643,-8761.52160548,0.00011032,2]
[347345071,1735715437654,-344.57859301,0.00011032,2]
[347345072,1735715437771,-1264.43557993,0.00011032,2]
[347345073,1735715437821,-21654.80627898,0.00011032,2]
[347345214,1735715439475,-3755.85216,0.00011032,2]
[347345215,1735715439488,-197088.66902598,0.00011032,2]
[347345216,1735715439498,-500.0,0.00011033,2]
[347345217,1735715439507,-500.0,0.00011033,2]
[347345218,1735715439517,-583.97,0.00011033,2]
[347345219,1735715439527,-530.46,0.00011033,2]
[347345220,1735715439536,-701.25,0.00011033,2]
[347345221,1735715439546,-849.06,0.00011033,2]
[347345222,1735715439556,-2129.07,0.00011033,2]
[347345223,1735715439565,-770.82,0.00011033,2]
[347345224,1735715439575,-500.0,0.00011033,2]
[347345225,1735715439584,-597.21,0.00011033,2]
[347345226,1735715439593,-2238.84,0.00011033,2]
[347345227,1735715439603,-297.87247513,0.00011033,2]
[347345228,1735715439613,-802.54,0.00011033,2]
[347345229,1735715439623,-500.0,0.00011033,2]
[347345230,1735715439632,-500.0,0.00011033,2]
[347345231,1735715439642,-559.35,0.00011033,2]
[347345232,1735715439652,-500.0,0.00011033,2]
[347345233,1735715439662,-804.47,0.00011033,2]
[347345234,1735715439671,-500.0,0.00011033,2]
[347345235,1735715439682,-2049.98,0.00011033,2]
[347345236,1735715439691,-1136.09,0.00011033,2]
[347345237,1735715439701,-500.0,0.00011033,2]
[347345238,1735715439711,-500.0,0.00011033,2]
[347345239,1735715439720,-859.01,0.00011033,2]
[347345240,1735715439730,-601.27,0.00011033,2]
[347345241,1735715439740,-565.16,0.00011033,2]
[347345242,1735715439749,-500.0,0.00011033,2]
[347345243,1735715439759,-1447.13,0.00011033,2]
[347345244,1735715439768,-500.0,0.00011033,2]
[347345245,1735715439777,-774.31,0.00011033,2]
[347345246,1735715439786,-1199.49,0.00011033,2]
[347345247,1735715439792,-862.5,0.00011033,2]
[347345248,1735715439799,-3670.36,0.00011033,2]
[347345249,1735715439806,-533.15,0.00011033,2]
[347345250,1735715439813,-500.0,0.00011033,2]
[347345251,1735715439819,-1068.61,0.00011033,2]
[347345252,1735715439828,-500.0,0.00011033,2]
[347345253,1735715439838,-500.0,0.00011033,2]
[347345254,1735715439847,-512.05,0.00011033,2]
[347345255,1735715439856,-2360.82,0.00011033,2]
[347345256,1735715439866,-500.0,0.00011033,2]
[347345258,1735715439876,-538.86,0.00011033,2]
[347345260,1735715439885,-500.0,0.00011033,2]